Cogmind - Beta 9.6 @@@ ROGUE MODE // 2020.06.02 @ 22:10:33 Player: Demise Result: Destroyed by as-47798 with Assembled Rifle Performance ------------- Evolutions (0) 0 Regions Visited (3) 600 Robots Destroyed (5) 25 Value Destroyed (52) 52 Prototype IDs (0) 0 Alien Tech Used (0) 0 Bonus (-63) -63 TOTAL SCORE: 614 Bonus ------- Friendly Fire -63 Cogmind --------- Core Integrity 0/250 Matter 217/300 Energy 74/100 System Corruption 8% Temperature Cool (46) Movement Core (100) Ox1 Location -10/Exiles Parts ------- > --- POWER (1) -------- (None) > --- PROPULSION (2) --- (None) > --- UTILITY (2) ------ Small Storage Unit Visual Processing Unit > --- WEAPON (2) ------- (None) > --- INVENTORY (6) ---- VTOL Module VTOL Module Mining Laser Peak State ------------ > --- POWER ------------ Light Ion Engine > --- PROPULSION ------- VTOL Module VTOL Module > --- UTILITY ---------- Small Storage Unit Visual Processing Unit > --- WEAPON ----------- Particle Gun Shotgun > --- INVENTORY -------- VTOL Module VTOL Module Assault Rifle Grenade Launcher Mining Laser [Rating: 12] Favorites ----------- Power Light Ion Engine Engine Light Ion Engine Propulsion VTOL Module Leg Aluminum Leg Flight Unit VTOL Module Utility Small Storage Unit Device Structural Scanner Storage Small Storage Unit Processor Visual Processing Unit Weapon Particle Gun Energy Gun Particle Gun Ballistic Gun Assault Rifle Launcher Grenade Launcher Build | -11 -10 -10 -10 ------- Run | Scr Mat Min Exi Slots Evolved . | . . . . Power . | . . . . Propulsion . | . . . . Utility . | . . . . Weapon . | . . . . Parts Attached 11 | . 7 . 4 Power . | . . . . Engine . | . . . . Core . | . . . . Reactor . | . . . . Propulsion 2 | . 2 . . Treads . | . . . . Leg . | . . . . Wheel . | . . . . Hover . | . . . . Flight 2 | . 2 . . Utility 2 | . 2 . . Device 1 | . 1 . . Storage . | . . . . Processor 1 | . 1 . . Hackware . | . . . . Protection . | . . . . Artifact . | . . . . Weapon 7 | . 3 . 4 Energy Gun 2 | . 2 . . Energy Cannon . | . . . . Ballistic Gun 4 | . 1 . 3 Ballistic Cannon . | . . . . Launcher 1 | . . . 1 Special Weapon . | . . . . Impact Weapon . | . . . . Slashing Weapon . | . . . . Piercing Weapon . | . . . . Special Melee Weapon . | . . . . Unidentified Prototypes . | . . . . Parts Lost 6 | . . . 6 Power 1 | . . . 1 Propulsion 2 | . . . 2 Utility . | . . . . Weapon 3 | . . . 3 Highest Loss Streak 6 | . . . 6 Average Slot Usage (%) 82 | . 82 85 83 Engine 13 | . 14 14 12 Leg 7 | . 12 . . Flight 19 | . 14 28 26 Storage 14 | . 14 14 14 Processor 7 | . 4 14 14 Energy Gun 9 | . 7 14 12 Ballistic Gun 8 | . 13 . 1 Naked Turns . | . . . . Heaviest Build 11 | 10 11 10 10 Greatest Support 20 | 20 20 10 10 Greatest Overweight (x) 1 | . 1 . . Average Overweight (x) . | . . . . Largest Inventory Capacity 6 | . 6 6 6 Average Capacity 6 | . 6 6 6 Most Carried 6 | . 6 6 6 Average Carried 5 | . 5 6 5 Final Capacity 6 | 6 6 6 6 Final Carried 6 | 6 6 6 3 Class Distribution -------------------- 100% | Mutant Dominant Class ---------------- Mutant | -10/Materials Mutant | -10/Mines Mutant | -10/Exiles Resources | -11 -10 -10 -10 ----------- Run | Scr Mat Min Exi Matter Collected 253 | 200 53 . . Remotely . | . . . . Salvage Created 76 | . 75 . 1 Parts 7 | . 7 . . Haulers Intercepted . | . . . . Recyclers Shooed . | . . . . Parts Field Recycled . | . . . . Retrieved Matter . | . . . . Parts Self-Destructed . | . . . . Prevented . | . . . . Kills | -11 -10 -10 -10 ------- Run | Scr Mat Min Exi Combat Hostiles Destroyed 3 | . 2 . 1 Guns 3 | . 2 . 1 Classes Destroyed 4 | . 3 . 1 Operator 1 | . 1 . . Watcher 1 | . 1 . . Swarmer 2 | . 2 . . Assembled 1 | . . . 1 Best Kill Streak 2 | . 2 . 1 Combat Bots Only 2 | . 2 . 1 Max Kills in Single Turn 1 | . 1 . 1 Gunslinging . | . . . . Exploded . | . . . . Melee . | . . . . Uniques/NPCs Destroyed . | . . . . Combat | -11 -10 -10 -10 -------- Run | Scr Mat Min Exi Damage Taken 822 | . 94 25 703 Core 254 | . 18 . 236 Absorbed by Shields . | . . . . Core Remaining (%) 100 | 100 . . . Volleys Fired 21 | . 14 . 7 Largest 2 | . 2 . 2 Hottest 95 | . 65 . 95 Shots Fired 31 | . 20 . 11 Gun 30 | . 20 . 10 Cannon . | . . . . Launcher 1 | . . . 1 Special . | . . . . Kinetic 18 | . 12 . 6 Thermal 12 | . 8 . 4 Explosive 1 | . . . 1 Electromagnetic . | . . . . Robot Hit Streak 9 | . 7 . 9 Robot Miss Streak 3 | . 3 . 3 Penetration Max . | . . . . Secondary Targets 1 | . 1 . . Max Gunslinging Chain 1 | . 1 . . Shots Hit Robots 20 | . 12 . 8 Core Hits 13 | . 4 . 9 Critical Hits . | . . . . Critical Kills . | . . . . Critical Parts Destroyed . | . . . . Melee Attacks . | . . . . Impact . | . . . . Slashing . | . . . . Piercing . | . . . . Sneak Attacks . | . . . . Combat Hostiles . | . . . . Follow-up Attacks . | . . . . Damage Inflicted 354 | . 136 . 218 Guns 225 | . 136 . 89 Cannons . | . . . . Explosions 129 | . . . 129 Melee . | . . . . Ramming . | . . . . Kinetic 163 | . 77 . 86 Thermal 62 | . 59 . 3 Explosive 129 | . . . 129 Electromagnetic . | . . . . Impact . | . . . . Slashing . | . . . . Piercing . | . . . . Highest Corruption 5 | . . . 5 Average Corruption 5 | . . . 5 Corruption Purged . | . . . . Effects 1 | . . . 1 Parts Rejected 1 | . . . 1 Overload Shots . | . . . . Overflow Damage . | . . . . Projectiles . | . . . . Explosions . | . . . . Melee . | . . . . Knockbacks . | . . . . Impact . | . . . . Kinetic . | . . . . Secondary . | . . . . Self-Inflicted Damage 33 | . . . 33 Shots 1 | . . . 1 Rammed . | . . . . Targets Rammed . | . . . . Kicked . | . . . . Crushed . | . . . . Highest Temperature 89 | . 72 . 89 Average Temperature 42 | . 32 . 55 Received Heat Transfer 126 | . 6 . 120 Siege Activations . | . . . . Robots Corrupted . | . . . . Combat Hostiles . | . . . . Parts Fried . | . . . . Impact Corruptions . | . . . . Robots Melted . | . . . . Combat Hostiles . | . . . . Parts Melted . | . . . . Heat Transferred 175 | . 148 . 27 Parts Sabotaged . | . . . . Parts Stolen . | . . . . Parts Stripped . | . . . . Power Chain Reactions . | . . . . Missiles Intercepted . | . . . . Alert | -11 -10 -10 -10 ------- Run | Scr Mat Min Exi Peak Influence 163 | . 163 63 . Average Influence 84 | . 90 63 . Maximum Alert Level . | . . . . Low Security (%) 100 | . 100 100 . Level 1 . | . . . . Level 2 . | . . . . Level 3 . | . . . . Level 4 . | . . . . Level 5 . | . . . . High Security . | . . . . Max Security . | . . . . Squads Dispatched 2 | . 2 . . Investigation 1 | . 1 . . Extermination . | . . . . Reinforcement 1 | . 1 . . Assault . | . . . . Garrison . | . . . . Intercept . | . . . . Construction Impeded . | . . . . Haulers Reinforced . | . . . . Stealth | -11 -10 -10 -10 --------- Run | Scr Mat Min Exi Distress Signals 1 | . 1 . . Communications Jammed . | . . . . Distress Signals . | . . . . Times Spotted 27 | . 16 3 8 Peak Tracking Total 9 | . 5 3 9 Tactical Retreats 2 | . 1 1 . Traps | -11 -10 -10 -10 ------- Run | Scr Mat Min Exi Traps Triggered 2 | . 2 . . Indirectly . | . . . . Trap Hack Attempts . | . . . . Triggered . | . . . . Disarmed . | . . . . Reprogrammed . | . . . . Reused . | . . . . Traps Extracted . | . . . . Installed . | . . . . Triggered . | . . . . Machines | -11 -10 -10 -10 ---------- Run | Scr Mat Min Exi Machines Disabled 2 | . . . 2 Max in Single Turn 2 | . . . 2 Machines Sabotaged . | . . . . Garrisons Compromised . | . . . . Overloaded Fab Kills . | . . . . Fab Network Shutdowns . | . . . . Hacking | -11 -10 -10 -10 --------- Run | Scr Mat Min Exi Machines Accessed 6 | . 5 . 1 Terminals 4 | . 4 . . Fabricators . | . . . . Repair Stations 1 | . 1 . . Recycling Units . | . . . . Scanalyzers . | . . . . Garrison Access . | . . . . Total Hacks 15 | . 14 . 1 Successful 11 | . 10 . 1 Failed 4 | . 4 . . Catastrophic . | . . . . Database Lockouts . | . . . . Manual 8 | . 8 . . Terminals 12 | . 12 . . Fabricators . | . . . . Repair Stations 2 | . 2 . . Recycling Units . | . . . . Scanalyzers . | . . . . Garrison Access . | . . . . Terminal Hacks 4 | . 3 . 1 Record 1 | . . . 1 Part Schematic 1 | . 1 . . Hauler Manifests 1 | . 1 . . Registered Components 1 | . 1 . . Fabricator Hacks . | . . . . Repair Station Hacks 2 | . 2 . . Scan Component 1 | . 1 . . Repair 1 | . 1 . . Recycling Unit Hacks . | . . . . Scanalyzer . | . . . . Garrison Access Hacks . | . . . . Unauthorized Hacks 5 | . 5 . . Terminals 5 | . 5 . . Track 1 | . 1 . . Botnet 3 | . 3 . . Operators 1 | . 1 . . Fabricators . | . . . . Repair Stations . | . . . . Recycling Units . | . . . . Scanalyzers . | . . . . Garrison Access . | . . . . Data Cores Recovered . | . . . . Used . | . . . . Hacking Detections 3 | . 3 . . Full Trace Events . | . . . . Feedback Events . | . . . . Feedback Blocked . | . . . . Robot Schematics Acquired . | . . . . Robots Built . | . . . . Matter . | . . . . Time . | . . . . Total Robot Build Rating . | . . . . Part Schematics Acquired 1 | . 1 . . Parts Built . | . . . . Matter . | . . . . Time . | . . . . Total Part Build Rating . | . . . . Parts Repaired 1 | . 1 . . Time 26 | . 26 . . Parts Recycled . | . . . . Recycled Matter . | . . . . Retrieved Matter . | . . . . Retrieved Components . | . . . . Parts Scanalyzed . | . . . . Part Schematics Acquired . | . . . . Parts Damaged . | . . . . Bothacking | -11 -10 -10 -10 ------------ Run | Scr Mat Min Exi Used RIF Installer . | . . . . Robots Hacked . | . . . . Non-combat . | . . . . Combat . | . . . . Robot Hacks Applied . | . . . . Relay Couplers Released . | . . . . Robots Rewired . | . . . . Allies Hacked . | . . . . Hacks Repelled . | . . . . Allies | -11 -10 -10 -10 -------- Run | Scr Mat Min Exi Total Allies . | . . . . Largest Group . | . . . . Highest-Rated Group . | . . . . Highest-Rated Ally . | . . . . Total Orders . | . . . . Ally Attacks . | . . . . Total Damage . | . . . . Kills . | . . . . Allies Corrupted . | . . . . Allies Melted . | . . . . Intel | -11 -10 -10 -10 ------- Run | Scr Mat Min Exi Robot Analysis Total . | . . . . Derelict Logs Recovered 1 | . . 1 . Drone Launches . | . . . . Drone Recoveries . | . . . . Exploration | -11 -10 -10 -10 ------------- Run | Scr Mat Min Exi Turns Passed 468 | . 300 83 85 Spaces Moved 620 | 1 254 195 170 Core . | . . . . Treads . | . . . . Legs 91 | 1 90 . . Wheels . | . . . . Hover . | . . . . Flight 529 | . 164 195 170 Fastest Speed 37 | 120 37 37 37 Average Speed 50 | 120 69 37 37 Slowest Speed 120 | 120 120 37 37 Overloaded Moves . | . . . . Propulsion Burnouts . | . . . . Robots Hopped . | . . . . Cave-ins Triggered 1 | . . . 1 Exploration Rate (%) 36 | 2 50 39 53 Regions Visited 3 Branch Regions 2 Pre-discovered Areas 1 | . . . 1 Known Exits Taken . | . . . . Unknown Exits Taken 3 | 1 1 1 . Scrap Searched . | . . . . Spaces Dug . | . . . . Terrain Destroyed 9 | . . . 9 Melee . | . . . . Projectile . | . . . . AOE 9 | . . . 9 Actions | -11 -10 -10 -10 --------- Run | Scr Mat Min Exi Total 747 | . 361 205 181 Wait 77 | . 66 11 . Move 617 | . 253 194 170 Hop . | . . . . Pick Up 9 | . 9 . . Fast Attach 4 | . 4 . . Attach 6 | . 3 . 3 Detach 1 | . 1 . . Swap 1 | . . . 1 Drop 11 | . 11 . . Fire 21 | . 14 . 7 Melee . | . . . . Ram . | . . . . Kick . | . . . . Crush . | . . . . Escape Stasis . | . . . . Rewire . | . . . . Trap . | . . . . Miscellaneous . | . . . . Route ------- -11/Scrapyard -10/Materials -10/Mines (discovered 2 exits: [*Mat] / *Exi) -10/Exiles (discovered 1 exit: [*Min]) History --------- Turn | Location | Event 1 | -11/Scrapyard | Discovered new exit (range 0) 1 | -11/Scrapyard | Entered Materials 235 | -10/Materials | Repaired Assault Rifle 271 | -10/Materials | Discovered new exit (range 16) 301 | -10/Materials | Entered Mines 318 | -10/Mines | Build established: Mutant 325 | -10/Mines | Received a Rocket Launcher from a helpful Derelict 336 | -10/Mines | Learned Materials emergency access door positions 343 | -10/Mines | Discovered new exit (range 11) 382 | -10/Mines | Deemed a non-threat by the Exiles lab entrance 383 | -10/Mines | Discovered new exit (range 5) 384 | -10/Mines | Entered Exiles 389 | -10/Exiles | Discovered new exit (range 16) 393 | -10/Exiles | Met 8R-AWN 400 | -10/Exiles | Met EX-HEX 412 | -10/Exiles | Met EX-BIN 417 | -10/Exiles | Met EX-DEC 420 | -10/Exiles | Learned location of Zion (-6) 449 | -10/Exiles | Attacked by the Exiles 465 | -10/Exiles | Core integrity fell below 50% 469 | -10/Exiles | Crushed by falling debris 469 | -10/Exiles | Core integrity fell below 20% 469 | -10/Exiles | Destroyed by as-47798 with Assembled Rifle Last Messages --------------- 00460_ Penetrated by HV Slug. 00460_ VTOL Module destroyed. 00460_ HV Slug penetrates Earth. 00461_ Grenade Launcher destroyed. 00461_ System corrupted by crushing effect (+5). 00461_ Knocked back. 00463_ HV Slug penetrates Earth. 00463_ as-15281 destroyed. 00465_ System corrupted: Shotgun rejected. 00465_ Penetrated by HV Slug. 00465_ HV Slug penetrates Earth. 00467_ Penetrated by HV Slug. 00467_ HV Slug penetrates Earth. 00467_ Penetrated by HV Slug. 00467_ HV Slug penetrates Earth. 00469_ The unstable cave ceiling collapses. 00469_ Crushed by falling debris. 00469_ Assault Rifle destroyed. 00469_ System corrupted by crushing effect (+3). 00469_ Shotgun crushed. Map ----- +----------------------------------------------------+ | ?????????????????????????????????????????????????? | | ?????????????????????????????????????????????????? | | ?????????????????????????????????????????????????? | | ?????????????????????????????????????????????????? | | "????????????????????????????????????????????????? | | ""???????????????????????????????????????????????? | | ""???????????????????????????????????????????????? | | ""???????????????????????????????????????????????? | | """??????????????????????????????????????????????? | | ""???????????????????????????????????????????????? | | ""???????????????????????????????????????????????? | | "????????????????????????????????????????????????? | | "????????????????????????????????????????????????? | | ?????????????????????????????????????????????????? | | ?????????????????????????????????????????????????? | | ?????????????????????????????????????????????????? | | ?????????????????????????????????????????????????? | | ?????????????????????????????????????????????????? | | ?????????????????????????????????????????????????? | | ??????????????????????????????????????????????# ? | | ?????????????????????????????????????????????? < | | ##########??????????????###??????????????????? | | """""""""##????????????## #??????????????????? | | " """ """"##???????????? #??????????????????# # | | "" " #????????????# ###??????????????## # | | " """#??????????###@# #??????????????# | | " "#??????????# # #??????????????# | | " "##?????????# #?????????????## | | ""###??????# %g #????????????## #? | | """#??????##aaaa #????????????# #? | | "#????### a ###????????### #?? | | ##???# a ########## #?? | | ##?## #""""## #??? | | ### * ##?? | | ## * #?? | | #### ##? | | ""#?#"""""#### ## | | #"""##?#######??#### * | | ######??????????????##### | | ##???????????????????????### | | " ##??????????????????????????### | | """ ""#?????????????????????????????### | | ""#" "##??????????????????????????????#" | | """##"""""""##???????????????????????????????#### | | """###########???????????????????????????????????# | | ####?????????????????????????????????????????????# | | ?????????????????????????????????????????????????? | | ?????????????????????????????????????????????????? | | ?????????????????????????????????????????????????? | | ?????????????????????????????????????????????????? | +----------------------------------------------------+ Best States ------------- Heat Dissipation 25 Energy Generation 10 Energy Capacity 125 Matter Stores 300 Matter Capacity 300 Sight Range 18 Terrain Scan Density 10 Evasion (%) 62 Item Schematics ----------------- Hcp. Storage Unit | -10/Materials | Hacked Robot Schematics ------------------ None Fabricated ------------ Nothing Alien Tech Used ----------------- None Achievements -------------- None Challenges ------------ None Game ------ Seed SpreadPotentialNeutralizer Manual? 0 Play Time 00:11:47 Cumulative 216.1 hours Start 2020.06.02 @ 22:00:45 End 2020.06.02 @ 22:10:33 Sessions 1 Manual Loads 0 Difficulty Rogue Special Mode None Game No. 281 Rogue 270 Adventurer 11 Explorer 0 Win Type - Total 0 Types 0/0/0/0/0/0/0 Lore% 52 Gallery% 66 Achievement% 45 Wizard Run 0 Options --------- ASCII 0 Keyboard 1 Movement Numpad Keybinds 0 Fullscreen 1 Font 12/Terminus Map View 83x54 Tactical HUD 1 Map Filters NONE Filters NONE Steam 1 RUN: 1fe97036-e23f-4719-8088-502aee2b86f9